bitfinex/quotes_ETHUSD_20260126
["timestamp","ask_amount","ask_price","bid_price","bid_amount"]
[1769388987905,0.002,2842.4,2841.7,9.30987429]
[1769388988226,8.98968669,2842.4,2841.6,1.48199562]
[1769388988424,12.88093346,2842.1,2841.1,10.18980342]
[1769388988627,8.98768669,2842.1,2841.2,0.03519639]
[1769388988824,8.98768669,2842.1,2841.2,9.34507068]
[1769388989028,8.98768669,2842.3,2841.2,10.40607427]
[1769388990195,12.88093346,2841.8,2840.9,9.30987429]
[1769388990400,12.88093346,2841.8,2841.0,0.03519887]
[1769388990596,8.98768669,2842.1,2841.0,0.03519887]
[1769388990924,0.002,2842.4,2841.2,9.30987429]
[1769388991101,0.002,2842.4,2841.4,9.30987429]
[1769388991300,0.002,2842.4,2841.6,9.30987429]
[1769388992222,0.002,2842.4,2841.7,0.0351902]
[1769388992405,0.002,2842.4,2841.7,9.34506449]
[1769388992607,0.002,2842.4,2841.7,9.30987429]
[1769388993311,0.002,2842.4,2841.7,10.18962639]
[1769388993512,0.002,2842.4,2841.8,10.06085171]
[1769388994332,0.002,2842.4,2841.6,0.737]
[1769388994935,0.002,2842.4,2841.7,9.04188907]
[1769388995134,0.002,2842.4,2841.8,9.07707803]
[1769388995302,0.002,2842.4,2841.8,9.04188907]
[1769388996926,0.002,2842.4,2841.6,9.77888907]
[1769388997095,0.002,2842.4,2841.7,1.0713396]
[1769388997299,0.002,2842.4,2841.7,1.1065298]
[1769388997911,0.002,2842.4,2841.7,10.14841887]
[1769388998111,0.002,2842.4,2841.7,10.99298278]
[1769388998320,0.002,2842.4,2841.7,10.11322867]
[1769388998512,0.002,2842.4,2841.8,1.17299943]
[1769388998839,0.002,2842.4,2841.9,9.07707679]
[1769388999135,0.002,2842.4,2842.0,9.07707555]
[1769388999302,0.002,2842.4,2842.0,9.04188907]
[1769389000449,0.002,2842.4,2841.8,1.17299943]
[1769389000636,0.002,2842.4,2841.8,1.20818839]
[1769389001744,0.002,2842.4,2841.9,0.19451884]
[1769389002448,0.002,2842.4,2841.9,9.27159563]
[1769389002617,0.002,2842.4,2841.9,9.23640791]
[1769389002821,0.002,2842.4,2841.9,10.11609653]
[1769389003050,0.002,2842.7,2842.0,9.04188907]
[1769389003223,0.002,2842.7,2842.2,9.04188907]
[1769389003421,0.002,2842.7,2842.4,9.04188907]
[1769389004503,0.002,2843.1,2842.4,9.92141398]
[1769389005137,0.002,2843.1,2842.4,9.04188907]
[1769389005642,0.002,2843.1,2842.5,0.03518029]
[1769389005834,13.51970066,2843.1,2842.1,1.38775681]
[1769389006034,13.51970066,2843.1,2842.1,0.77218525]
[1769389006844,13.51970066,2843.1,2842.1,1.65181575]
[1769389007010,3.89533286,2843.1,2842.1,10.69370482]
[1769389007209,3.89533286,2843.1,2842.1,10.65851957]
[1769389007433,0.002,2843.1,2842.3,9.04188907]
[1769389007629,0.002,2843.1,2842.4,0.90770731]
[1769389007842,0.002,2843.1,2842.4,0.94288884]
[1769389009234,0.002,2843.1,2842.4,9.98477791]
[1769389009439,0.002,2843.1,2842.4,9.94959638]
[1769389009613,0.002,2843.1,2842.5,0.03518029]
[1769389010343,0.002,2843.1,2842.4,9.94959638]
[1769389010510,13.53443045,2843.1,2842.1,0.737]
[1769389010707,13.53443045,2843.1,2842.2,0.03518401]
[1769389010906,13.53443045,2843.1,2841.9,0.19451884]
[1769389010907,3.89333286,2842.8,2841.9,0.19451884]
[1769389011122,5.25064855,2842.8,2841.9,10.11609726]
[1769389011335,3.89333286,2842.8,2842.0,0.03518648]
[1769389011545,0.002,2842.9,2842.0,9.07707555]
[1769389011746,0.002,2842.9,2842.0,9.04188907]
[1769389011944,0.002,2842.9,2842.1,0.03518525]
[1769389012144,9.64812745,2842.9,2842.1,0.03518525]
[1769389012314,14.59221053,2842.8,2841.8,0.77218896]
[1769389012642,14.59221053,2842.8,2841.8,9.81407803]
[1769389012947,14.59221053,2842.8,2841.8,9.77888907]
[1769389013143,14.59221053,2842.8,2840.9,3.51993368]
[1769389013144,15.47164009,2842.8,2840.9,3.51993368]
[1769389013445,11.54871137,2842.7,2841.5,9.92168758]
[1769389013614,11.54871137,2842.7,2841.6,0.03519144]
[1769389014043,11.54871137,2842.7,2841.6,0.91497436]
[1769389014243,11.54871137,2842.7,2841.8,0.87972189]
[1769389014244,1.89912033,2842.7,2841.8,0.87972189]
[1769389014550,0.002,2842.9,2841.9,9.07707679]
[1769389014743,0.002,2842.9,2841.9,9.04188907]
[1769389015751,9.69380597,2842.9,2841.5,9.04188907]
[1769389015944,9.65862181,2842.9,2841.6,0.03519144]
[1769389016146,9.69516056,2842.8,2841.6,9.07708051]
[1769389016347,0.96971606,2842.7,2841.7,10.91732855]
[1769389016530,0.96971606,2842.7,2841.8,9.07707803]
[1769389016731,0.002,2842.9,2841.8,9.04188907]
[1769389016919,0.002,2842.9,2841.9,9.07707679]
[1769389017248,0.002,2842.9,2841.9,9.04188907]
[1769389017414,0.002,2842.9,2842.0,0.03518648]
[1769389018348,0.002,2842.9,2842.0,9.07707555]
[1769389018559,0.002,2842.9,2842.1,10.03756562]
[1769389021132,0.002,2842.9,2841.7,0.99568954]
[1769389021133,9.67823842,2842.9,2841.7,0.99568954]
[1769389021324,9.67823842,2842.9,2841.7,0.0351902]
[1769389021519,0.03518416,2842.8,2841.7,0.0351902]
[1769389021738,6.12054373,2841.7,2840.1,0.001]
[1769389021937,6.13639548,2841.3,2840.1,0.001]
[1769389022133,6.13639548,2841.1,2840.1,0.001]
[1769389022843,6.13639548,2841.1,2840.8,0.001]
[1769389023164,6.16951417,2841.4,2840.1,0.001]
[1769389024087,0.87987892,2841.3,2840.1,0.001]
[1769389024239,7.24269985,2841.2,2840.1,0.001]
[1769389026274,0.87994086,2841.1,2840.1,0.001]
[1769389026458,0.87994086,2841.1,2838.0,3.71]
[1769389026459,7.09778086,2841.1,2839.2,9.27056458]
[1769389026642,7.09778086,2841.1,2839.1,0.88053901]
[1769389026643,7.09778086,2841.1,2839.3,9.288219]
[1769389026843,6.21784,2840.9,2839.4,0.9288219]
[1769389027371,1.16744352,2841.0,2839.6,9.27056458]
[1769389027575,1.16744352,2841.0,2839.8,9.27056458]
[1769389028673,0.88000281,2840.9,2839.8,9.27056458]
[1769389030259,7.15987458,2840.9,2839.5,9.27056458]
[1769389030455,1.06798416,2840.8,2839.5,10.29050323]
[1769389030673,0.88006477,2840.7,2839.5,10.29050323]
[1769389033085,0.04399859,2841.0,2839.5,10.29050323]
[1769389033086,0.88000281,2840.9,2839.5,10.29050323]
[1769389033659,0.04400168,2840.8,2839.5,10.29050323]
[1769389034249,0.88000281,2840.9,2839.7,9.27056458]
[1769389034444,0.48400309,2840.8,2839.9,9.27056458]
[1769389034950,0.44000141,2840.8,2839.9,9.27056458]
[1769389035173,0.88000281,2840.9,2839.9,9.27056458]
[1769389036057,0.04400168,2840.8,2839.9,9.27056458]
[1769389036874,0.88006477,2840.7,2839.9,9.27056458]
[1769389037067,0.88006477,2840.7,2839.7,0.001]
[1769389037268,0.04400478,2840.6,2839.7,10.03580721]
[1769389037470,0.924068,2840.7,2839.8,11.03838793]
[1769389038178,7.33366658,2840.7,2839.7,0.001]
[1769389038382,7.28966335,2840.7,2839.7,0.001]
[1769389039901,0.04400478,2840.6,2839.7,0.001]
[1769389040057,0.8800412,2840.8,2839.7,0.001]
[1769389040253,0.88000789,2840.9,2839.7,10.03580721]
[1769389040512,0.04400168,2840.8,2839.7,10.03580721]
[1769389042158,0.92406607,2840.8,2839.7,10.03580721]
[1769389043696,7.35634024,2840.8,2839.7,10.03580721]
[1769389043859,7.65059817,2840.7,2839.7,0.001]
[1769389044064,0.04400478,2840.6,2839.7,0.001]
[1769389044292,7.41338238,2840.6,2839.7,0.001]
[1769389044493,0.04400633,2840.5,2839.7,0.001]
[1769389044713,0.04400633,2840.5,2839.1,1.61755495]
[1769389044714,6.53326885,2840.5,2838.1,10.03480721]
[1769389044993,6.50201255,2840.3,2838.7,10.91549081]
[1769389045194,6.50201255,2840.3,2838.9,10.03480721]
[1769389045697,6.50201255,2840.1,2838.3,10.91560662]
[1769389045887,7.25160627,2840.0,2838.5,10.03480721]
[1769389046087,0.72516063,2839.9,2838.7,10.03480721]
[1769389046287,1.60549523,2839.9,2838.7,10.03480721]
[1769389046870,8.1201015,2839.9,2838.7,10.03480721]
[1769389047193,8.1201015,2839.9,2838.3,10.03480721]
[1769389047366,8.1201015,2839.9,2838.4,10.94940262]
[1769389047566,1.23783522,2839.8,2838.6,10.03480721]
[1769389048363,0.88037468,2839.7,2838.6,10.03480721]
[1769389048577,7.41986113,2839.7,2838.3,10.03480721]
[1769389050966,9.46538965,2839.7,2838.3,10.03480721]
[1769389052173,6.58748548,2839.6,2838.3,10.03480721]
[1769389052473,2.9259032,2839.7,2838.0,0.001]
[1769389052474,7.46795318,2839.4,2838.1,10.03480721]
[1769389052906,7.46795318,2839.4,2838.0,0.001]
[1769389053413,7.46795318,2839.4,2838.0,9.78156058]
[1769389054575,7.35920215,2839.3,2838.0,9.78156058]
[1769389055212,7.35920215,2839.3,2838.0,0.001]
[1769389055373,6.63341555,2839.7,2838.0,10.75971664]
[1769389055574,6.67743583,2839.6,2838.0,10.75971664]
[1769389055900,6.63341555,2839.6,2838.0,11.64061522]
[1769389056102,2.85519361,2839.8,2838.2,9.78056058]
[1769389056103,0.04402183,2839.5,2838.2,9.78056058]
[1769389056272,0.04401873,2839.7,2838.4,9.78056058]
[1769389056900,0.88040569,2839.6,2838.4,9.78056058]
[1769389057410,0.04402183,2839.5,2838.4,9.78056058]
[1769389058305,0.88040569,2839.6,2838.4,9.78056058]
[1769389059415,2.11819877,2839.8,2838.4,9.78056058]
[1769389059635,7.55727327,2840.4,2838.6,9.78056058]
[1769389059792,6.67711555,2840.2,2838.6,9.78056058]
[1769389059989,6.73171678,2840.1,2838.6,9.78056058]
[1769389060217,6.68770425,2840.1,2838.6,9.78056058]
[1769389060424,0.66877043,2840.0,2838.7,10.86623663]
[1769389060588,0.04401563,2839.9,2838.7,10.86623663]
[1769389061202,0.88034368,2839.8,2838.7,10.86623663]
[1769389061393,0.04401873,2839.7,2838.7,10.86623663]
[1769389062205,0.04401873,2839.7,2838.7,9.78056058]
[1769389063727,0.92442286,2839.7,2838.7,9.78056058]
[1769389064143,0.04401873,2839.7,2838.7,9.78056058]
[1769389064297,3.52071041,2840.4,2838.7,9.78056058]
[1769389064298,0.88036346,2839.8,2838.7,9.78056058]
[1769389064637,0.48859263,2839.7,2838.7,9.78056058]
[1769389065145,0.4445739,2839.7,2838.7,9.78056058]
[1769389066614,0.4445739,2839.7,2838.6,0.88071384]
[1769389066615,0.4445739,2839.7,2838.9,9.78056058]
[1769389067022,2.92587924,2839.8,2838.9,9.78056058]
[1769389067614,2.04552852,2839.8,2838.9,9.78056058]
[1769389067833,2.92587246,2839.8,2838.9,9.78056058]
[1769389068238,2.04552852,2839.8,2838.9,9.78056058]
[1769389068429,2.04552852,2839.8,2838.2,0.739]
[1769389068430,0.92419814,2840.3,2839.1,9.78056058]
[1769389068735,1.28906502,2840.3,2839.1,9.78056058]
[1769389069037,1.28906502,2840.3,2838.8,9.78056058]
[1769389069038,6.82752272,2840.1,2838.8,9.78056058]
[1769389069337,0.04401408,2840.0,2838.8,9.78056058]
[1769389069540,0.68715368,2839.9,2838.8,10.84668635]
[1769389069728,0.04401718,2839.8,2838.8,10.84668635]
[1769389070042,7.76162279,2839.8,2838.3,9.78056058]
[1769389070347,7.71760561,2839.8,2838.3,9.78056058]
[1769389071425,8.45560561,2839.8,2838.3,10.66136446]
[1769389071610,0.04401873,2839.7,2838.3,10.66136446]
[1769389071927,0.88039789,2839.7,2838.5,9.78056058]
[1769389072129,0.92441662,2839.7,2838.7,9.78056058]
[1769389072328,0.88036184,2839.8,2838.7,9.78056058]
[1769389072531,1.5674863,2839.9,2838.7,9.78056058]
[1769389073138,0.04401718,2839.8,2838.7,9.78056058]
[1769389073442,0.88030515,2840.0,2838.9,9.78056058]
[1769389073742,0.44453531,2839.9,2838.9,10.76199768]
[1769389073945,0.92428437,2840.1,2838.9,10.76199768]
[1769389075555,0.92428437,2840.1,2838.9,9.78056058]
[1769389077235,0.92428437,2840.1,2839.1,9.78056058]
[1769389077236,0.04401253,2840.1,2839.1,9.78056058]
[1769389077434,0.04401408,2840.0,2839.1,9.78056058]
[1769389077816,0.92427173,2840.1,2839.1,9.78056058]
[1769389080348,0.92427173,2840.1,2839.1,9.77175435]
[1769389080651,0.64906996,2840.0,2838.7,9.78056058]
[1769389080830,0.04401563,2839.9,2838.7,9.78056058]
[1769389081149,0.04401718,2839.8,2838.9,9.78056058]
[1769389083423,0.92436219,2839.8,2838.9,9.78056058]
[1769389083670,0.002,2839.6,2838.9,9.78056058]
[1769389084223,0.002,2839.6,2838.9,10.84668475]
[1769389084416,0.64906996,2840.0,2839.0,9.40076516]
[1769389084616,0.128,2840.5,2839.2,9.40076516]
[1769389084617,7.90546303,2840.5,2839.2,9.40076516]
[1769389084840,7.03553349,2840.4,2839.2,9.40076516]
[1769389085054,7.02530531,2840.4,2838.9,9.40076516]
[1769389085346,0.8802197,2840.2,2838.9,9.40076516]
[1769389085570,3.90189835,2840.0,2838.9,9.40076516]
[1769389085750,0.01022818,2839.9,2838.9,9.40076516]
[1769389086055,3.90189835,2839.7,2838.9,9.40076516]
[1769389086352,0.01022818,2839.6,2838.9,9.40076516]
[1769389086552,3.91212653,2840.0,2838.9,10.34084168]
[1769389086742,3.91212653,2840.0,2839.0,9.43598883]
[1769389087056,3.91212653,2840.0,2839.0,9.40076516]
[1769389087226,3.91212653,2840.0,2839.1,0.03522242]
[1769389087856,4.78220633,2840.0,2839.0,9.40076516]
[1769389088059,0.47924345,2839.9,2839.0,9.40076516]
[1769389088358,0.47924345,2839.9,2839.1,0.03522242]
[1769389091348,1.35956213,2839.9,2839.1,0.03522242]
[1769389091657,0.47924345,2839.9,2839.1,0.03522242]
[1769389091860,0.88012673,2840.5,2839.2,9.40076516]
[1769389092066,3.90189835,2839.9,2839.2,9.40076516]
[1769389093075,0.01022818,2839.8,2838.7,9.40076516]
[1769389093264,0.01022818,2839.8,2838.6,1.61869514]
[1769389093265,0.01022818,2839.8,2838.8,10.50271119]
[1769389093761,4.78221422,2839.9,2838.8,10.50271119]
[1769389094242,3.90189835,2839.9,2838.9,9.43599007]
[1769389094565,3.90189835,2839.9,2838.9,9.40076516]
[1769389094762,3.90189835,2839.9,2839.0,9.43598883]
[1769389094966,0.47822024,2839.8,2839.0,9.40076516]
[1769389095165,0.47822024,2839.8,2839.1,0.03522242]
[1769389095344,0.47822024,2839.8,2839.1,9.43598758]
[1769389095540,0.88024086,2840.2,2839.1,9.40076516]
[1769389095743,0.002,2839.8,2839.2,0.03522118]
[1769389095932,0.002,2839.8,2839.3,9.40076516]
[1769389096572,0.002,2840.0,2839.5,9.54458901]
[1769389098484,0.002,2840.6,2839.6,9.54458901]
[1769389098658,0.002,2840.6,2839.8,9.54458901]
[1769389100292,0.002,2840.6,2839.8,10.42492379]
[1769389100468,0.002,2840.8,2839.9,9.54458901]
[1769389100674,0.002,2840.8,2840.1,9.54458901]
[1769389102076,0.002,2840.8,2840.1,10.28158901]
[1769389102282,0.002,2840.8,2840.2,10.24783985]
[1769389102994,0.002,2840.8,2840.2,11.12803928]
[1769389103190,0.002,2840.8,2840.2,10.24783985]
[1769389104367,0.002,2840.8,2840.2,11.12805557]
[1769389104568,0.002,2840.8,2840.2,10.24783985]
[1769389104797,0.002,2840.8,2840.3,10.52274507]
[1769389105692,0.002,2840.8,2840.3,11.40292819]
[1769389106269,0.002,2840.8,2840.3,10.52274507]
[1769389106504,0.002,2840.8,2840.3,11.40293347]
[1769389106800,0.002,2840.8,2840.3,10.52274507]
[1769389106995,0.002,2840.8,2840.5,9.54458901]
[1769389108066,0.002,2840.6,2840.5,9.54458901]
[1769389108299,0.002,2841.0,2840.6,9.54458901]
[1769389108476,0.002,2841.0,2840.6,9.48106577]
[1769389108678,0.002,2841.0,2840.6,9.41118684]
[1769389108896,0.002,2841.0,2840.6,9.34765739]
[1769389109096,0.002,2841.0,2840.6,9.28412494]
[1769389110512,0.002,2841.0,2840.3,0.001]
[1769389114303,0.75851818,2841.0,2840.4,10.28368798]
[1769389114511,0.002,2841.0,2840.4,10.28368798]
[1769389116375,0.002,2841.0,2840.5,10.29781873]
[1769389116576,0.002,2841.0,2840.5,10.28368798]
[1769389119410,0.002,2840.8,2840.5,10.28368798]
[1769389129128,0.002,2840.8,2840.3,10.28468798]
[1769389130301,0.002,2840.8,2840.3,12.35506168]
[1769389131018,0.002,2840.8,2840.6,0.001]
[1769389131216,0.002,2841.0,2840.6,10.28468798]
[1769389143153,0.002,2840.8,2840.6,0.001]
[1769389147036,0.002,2840.8,2840.5,0.001]
[1769389147571,0.002,2840.8,2840.6,9.57337604]
[1769389149354,0.002,2841.0,2840.7,9.57337604]
[1769389149857,0.002,2841.2,2840.5,9.57437604]
[1769389150622,0.002,2841.2,2840.5,0.001]
[1769389150873,0.002,2841.2,2840.5,9.57437604]
[1769389151448,0.002,2841.2,2840.5,10.45448381]
[1769389151651,0.002,2841.2,2840.6,11.00853186]
[1769389153124,0.002,2841.2,2840.7,3.89707437]
[1769389153433,0.002,2841.2,2840.8,9.57337604]
[1769389154527,0.002,2841.0,2840.8,9.57337604]
[1769389154723,0.002,2841.2,2840.8,9.57337604]
[1769389154929,0.01022818,2841.7,2841.0,9.57337604]
[1769389157840,0.01022818,2841.9,2841.0,9.57337604]
[1769389159265,0.88994397,2841.9,2841.0,9.57337604]
[1769389159567,8.70353695,2841.9,2841.0,9.57337604]
[1769389159754,8.69330877,2841.9,2841.0,9.57337604]
[1769389159937,0.87975906,2841.8,2841.0,9.57337604]
[1769389160955,0.01022818,2841.8,2841.0,9.57337604]
[1769389161269,8.7114583,2841.9,2841.0,9.57337604]
[1769389161566,8.70123012,2841.9,2841.0,9.57337604]
[1769389162468,10.74675864,2841.9,2841.0,9.57337604]
[1769389163168,7.8394309,2841.8,2841.0,9.57337604]
[1769389163373,8.90566832,2841.7,2840.7,10.24036774]
[1769389163578,7.8394309,2841.6,2840.7,10.24036774]
[1769389163783,7.82920272,2841.6,2840.7,10.24036774]
[1769389164856,0.002,2842.0,2841.5,10.24036774]
[1769389165068,10.14104755,2842.7,2841.5,10.24036774]
[1769389165069,0.87943329,2842.8,2841.5,10.24036774]
[1769389165270,0.002,2842.4,2841.5,10.24036774]
[1769389165475,0.002,2842.4,2841.7,10.24036774]
[1769389165977,10.14104755,2842.3,2841.5,0.737]
[1769389166149,0.002,2842.4,2841.5,11.85717252]
[1769389166347,0.002,2841.8,2841.7,10.24036774]
[1769389166550,0.002,2842.4,2841.7,10.24036774]
[1769389171186,10.14304755,2842.4,2841.6,1.92271725]
[1769389171359,10.14304755,2842.4,2841.6,0.737]
[1769389171858,0.002,2842.4,2841.6,10.97736774]
[1769389173486,0.002,2842.4,2841.6,11.85714934]
[1769389173990,10.15813189,2842.3,2841.3,11.36066191]
[1769389174288,10.15813189,2842.3,2841.1,3.51976334]
[1769389174289,3.89707437,2841.9,2841.0,10.48080388]
[1769389174491,3.90930255,2842.2,2840.8,10.48080388]
[1769389174492,3.89707437,2841.6,2840.8,10.48080388]
[1769389174987,3.89707437,2841.6,2840.6,11.21780388]
[1769389174988,3.89707437,2841.3,2840.6,11.21780388]
[1769389176285,14.05520626,2841.6,2840.6,11.21780388]
[1769389178293,1.26944788,2841.8,2840.8,10.48080388]
[1769389178895,11.42757977,2841.8,2841.1,0.001]
[1769389179201,0.002,2841.6,2840.8,10.48080388]
[1769389180996,0.002,2841.6,2840.9,10.48180388]
[1769389183799,0.002,2842.2,2841.5,10.48080388]
[1769389183969,0.002,2842.2,2841.3,0.737]
[1769389184167,10.16013189,2842.2,2841.4,1.12178039]
[1769389185103,14.0679486,2842.1,2841.2,10.48080388]
[1769389185304,14.05484671,2842.1,2841.2,10.48080388]
[1769389186991,0.01310189,2842.0,2841.2,10.48080388]
[1769389187796,0.01310189,2842.0,2840.9,0.001]
[1769389187797,11.05089783,2842.0,2840.9,10.48180388]
[1769389188001,10.15813189,2841.8,2841.0,1.04818039]
[1769389188187,10.17123378,2841.7,2840.9,0.001]
[1769389188504,10.15813189,2841.7,2840.9,0.001]
[1769389189196,1.49476127,2841.9,2840.9,10.51700399]
[1769389189505,1.49476127,2841.9,2840.9,10.48180388]
[1769389189689,1.25325572,2841.8,2840.9,10.48180388]
[1769389190873,1.25325572,2841.8,2841.1,0.001]
[1769389191072,1.25525572,2841.8,2841.1,0.001]
[1769389193779,1.25525572,2841.8,2841.1,10.48180388]
[1769389193977,0.002,2841.8,2841.1,10.48180388]
[1769389195217,0.002,2841.8,2841.3,10.48080388]
[1769389200527,0.002,2842.0,2841.4,10.48080388]
[1769389201304,0.002,2842.0,2841.6,10.48080388]
[1769389202420,0.002,2842.0,2841.6,11.36058318]
[1769389202619,0.002,2842.4,2841.7,11.6168622]
[1769389203735,0.002,2841.8,2841.7,11.6168622]
[1769389203898,0.002,2842.0,2841.8,10.63589217]
[1769389204101,0.002,2842.4,2842.0,10.63589217]
[1769389204425,0.002,2842.4,2841.7,1.13605832]
[1769389204635,1.47352157,2842.3,2841.5,10.63589217]
[1769389206533,0.002,2842.4,2841.5,10.63589217]
[1769389206737,0.002,2842.4,2841.8,10.63589217]
[1769389207339,0.002,2842.4,2841.5,10.63589217]
[1769389207546,0.002,2842.4,2841.6,0.77219144]
[1769389207844,0.002,2842.4,2841.6,11.40808361]
[1769389208001,0.002,2842.4,2841.7,11.77670053]
[1769389210203,0.002,2842.4,2841.8,10.67108113]
[1769389210402,0.002,2842.4,2841.9,0.737]
[1769389210603,0.002,2842.4,2842.0,10.63589217]
[1769389211932,0.002,2842.9,2842.1,10.63589217]
[1769389212132,0.002,2842.9,2842.3,10.63589217]
[1769389212335,0.002,2842.9,2842.3,11.37289217]
[1769389212758,0.002,2843.1,2842.3,11.37289217]
[1769389212759,0.002,2843.1,2842.4,10.63589217]
[1769389213109,0.002,2843.2,2842.7,10.63589217]
[1769389213419,0.002,2843.6,2843.0,10.63589217]
[1769389213739,0.002,2843.6,2843.1,12.08894732]
[1769389213935,0.002,2843.6,2843.1,12.05375832]
[1769389216117,0.002,2843.4,2843.1,12.05375832]
[1769389216822,10.83855636,2844.2,2843.1,12.05375832]
[1769389217214,11.71754085,2844.2,2843.1,12.05375832]
[1769389217413,10.85303467,2844.7,2843.3,10.82582425]
[1769389217714,10.85303467,2844.7,2843.2,1.1568247]
[1769389217715,0.88080914,2844.8,2843.5,10.82582425]
[1769389217927,0.88080914,2844.8,2843.6,0.737]
[1769389218130,0.88080914,2844.8,2843.7,10.82582425]
[1769389218412,0.88080914,2844.8,2843.8,0.737]
[1769389218743,0.002,2844.8,2843.8,12.44191154]
[1769389219439,0.002,2844.8,2843.8,12.4419262]
[1769389220223,3.51390747,2845.9,2844.1,0.2335703]
[1769389220224,0.87845672,2845.9,2844.1,0.2335703]
[1769389220525,0.4575816,2845.8,2844.6,10.82582425]
[1769389220723,0.18353242,2846.0,2844.8,10.82582425]
[1769389220927,0.87840412,2846.1,2844.8,10.82582425]
[1769389221123,0.01310189,2846.0,2844.9,0.737]
[1769389221626,0.01310189,2846.0,2844.9,10.82582425]
[1769389221826,9.97420738,2845.9,2844.3,10.82582425]
[1769389222030,9.97420738,2845.7,2844.4,0.737]
[1769389222234,9.98730927,2845.6,2844.3,10.82582425]
[1769389222539,9.97420738,2845.6,2844.4,0.737]
[1769389222748,0.01310189,2845.5,2844.4,0.737]
[1769389222914,0.99873093,2845.4,2844.4,0.737]
[1769389223350,1.87734402,2845.4,2844.4,0.737]
[1769389223567,0.87839499,2846.1,2844.5,10.82582425]
[1769389223733,0.87839499,2846.1,2844.6,0.736]
[1769389223734,10.86570426,2846.1,2844.6,0.736]
[1769389223918,10.85260237,2846.1,2844.6,0.736]
[1769389224252,9.97420738,2845.9,2844.6,0.736]
[1769389224952,10.85268973,2845.9,2844.6,11.56182425]
[1769389225137,1.43664168,2845.8,2844.6,11.56182425]
[1769389225343,1.43664168,2845.8,2844.6,12.44068047]
[1769389225651,0.87833878,2846.3,2844.6,12.44068047]
[1769389226349,0.01310189,2846.2,2844.6,12.44068047]
[1769389226567,0.01310189,2846.2,2844.8,10.82582425]
[1769389226723,3.5133072,2846.4,2844.6,0.87885622]
[1769389226724,10.86561168,2846.4,2845.0,10.82582425]
[1769389226919,10.86567189,2846.3,2845.0,10.79063525]
[1769389227121,1.08656719,2846.2,2845.0,12.82201884]
[1769389227449,0.01310189,2846.5,2845.2,10.82582425]
[1769389227658,0.01310189,2846.5,2844.5,3.51549763]
[1769389227659,5.63203782,2844.5,2839.3,10.82582425]
[1769389227960,0.67482457,2846.5,2839.3,10.82582425]
[1769389227961,0.1836522,2841.1,2840.9,0.04487562]
[1769389228160,0.13952069,2841.7,2840.7,0.08821143]
[1769389228161,0.26752069,2841.7,2841.3,0.04410572]
[1769389228318,0.26752069,2841.7,2840.2,10.91403568]
[1769389228319,0.13952069,2841.7,2839.0,10.08821143]
[1769389228654,0.13952069,2841.7,2839.4,10.82582425]
[1769389228655,1.8739478,2840.5,2839.4,10.82582425]
[1769389228955,0.93710383,2840.1,2839.6,0.03343172]
[1769389229161,0.93710383,2839.7,2839.0,10.79066495]
[1769389229464,0.74957912,2839.6,2838.9,0.001]
[1769389229764,0.93629318,2839.3,2838.9,0.001]
[1769389229918,1.6858723,2839.2,2838.9,0.001]
[1769389230122,0.74957912,2839.1,2838.9,0.001]
[1769389230336,0.93629318,2839.2,2838.9,0.001]
[1769389230337,0.74957912,2839.0,2838.9,0.001]
[1769389231124,0.67083486,2839.0,2838.9,1.7e-07]
[1769389233346,0.93629318,2839.4,2838.9,1.7e-07]
[1769389234256,0.93629318,2839.5,2838.9,1.7e-07]
[1769389234551,1.24291099,2839.5,2838.9,1.7e-07]
[1769389236230,0.30661781,2839.5,2838.9,1.7e-07]
[1769389236626,0.93629318,2839.6,2838.9,1.7e-07]
[1769389236627,0.93629318,2839.4,2838.9,1.7e-07]
[1769389237464,1.81674843,2839.5,2838.9,1.7e-07]
[1769389238050,0.93629318,2839.4,2838.9,1.7e-07]
[1769389238255,1.81674843,2839.5,2838.9,1.7e-07]
[1769389238562,1.47013201,2839.4,2838.5,0.001]
[1769389238733,1.47013201,2839.4,2838.2,0.001]
[1769389239166,0.93629318,2839.3,2838.2,0.001]
[1769389239340,0.88049871,2839.3,2838.2,0.001]
[1769389240263,0.53383883,2839.4,2838.2,10.55675739]
[1769389240435,0.002,2839.3,2838.3,1.05567574]
[1769389241027,0.002,2839.3,2838.2,0.001]
[1769389242044,0.002,2839.3,2838.0,0.001]
[1769389242045,0.93829318,2839.3,2838.0,0.001]
[1769389242261,0.002,2839.3,2838.0,0.001]
[1769389242633,0.01688639,2839.3,2838.0,0.001]
[1769389242946,0.18336534,2839.2,2838.0,1.08838846]
[1769389243260,0.73899951,2839.1,2837.4,11.48980299]
[1769389243562,0.88059175,2839.0,2837.6,10.52052381]
[1769389243735,0.88059175,2839.0,2837.8,10.52052381]
[1769389243936,0.88059175,2839.0,2837.9,0.03523732]
[1769389244131,0.88059175,2839.0,2838.0,1.05557611]
[1769389244634,12.13893774,2839.0,2837.9,0.03523732]
[1769389244974,12.13893774,2839.0,2836.7,1.16448859]
[1769389244975,0.73828124,2838.9,2837.4,10.52052381]
[1769389245337,0.88065379,2838.8,2837.5,0.02649543]
[1769389245953,0.88065379,2838.8,2837.5,10.54701924]
[1769389246158,0.88065379,2838.8,2837.6,1.05470192]
[1769389246354,0.88064356,2838.9,2837.6,1.08119533]
[1769389247085,3.52405437,2839.3,2837.6,1.08119533]
[1769389247086,0.002,2839.3,2838.1,10.52052381]
[1769389247285,0.002,2839.3,2838.3,10.52052381]
[1769389247585,0.002,2839.3,2838.5,10.48536451]
[1769389247774,0.002,2839.3,2838.4,1.05470008]
[1769389248086,0.002,2839.3,2838.2,10.54699751]
[1769389248389,0.002,2839.3,2838.3,0.02647494]
[1769389248961,0.002,2839.3,2837.8,11.40146746]
[1769389249160,0.002,2839.3,2838.2,0.88082597]
[1769389249350,0.002,2839.3,2838.3,10.54699875]
[1769389249549,0.002,2839.3,2838.4,1.05469988]
[1769389250169,0.002,2839.3,2838.5,10.54699471]
[1769389250389,0.002,2839.3,2838.5,10.52052381]
[1769389250570,0.002,2839.3,2838.6,0.02646888]
[1769389251087,0.002,2839.3,2838.6,10.54699269]
[1769389251295,0.002,2839.3,2838.7,0.42397147]
[1769389251589,0.002,2839.3,2838.8,0.02646485]
[1769389251792,0.002,2839.3,2838.8,0.90711278]
[1769389252082,0.002,2839.3,2838.8,0.02646485]
[1769389252266,0.74175062,2839.2,2838.8,0.02746485]
[1769389252461,0.74175062,2839.2,2838.8,0.001]